[Event "Championnat d'Europe Rapide"]
[Date "2024.12.07"]
[White "Kilic, Eray"]
[Black "Pultinevicius, Paulius"]
[WhiteElo "2459"]
[BlackElo "2579"]
[Round "5.5"]
[Result "1/2-1/2"]
[TimeControl "900+10"]

1. e4 {[%emt 00:04:41] [%clk 00:15:17]} c5 {[%clk 00:15:19]} 2. Nf3 {[%emt
00:00:02] [%clk 00:15:26]} e6 {[%emt 00:00:01] [%clk 00:15:28]} 3. d4 {[%emt
00:00:16] [%clk 00:15:20]} cxd4 {[%clk 00:15:37]} 4. Nxd4 {[%emt 00:00:02] [%clk
00:15:28]} Nc6 {[%clk 00:15:47]} 5. Nc3 {[%emt 00:00:04] [%clk 00:15:34]} d6
{[%emt 00:00:02] [%clk 00:15:55]} 6. Bb5 {[%emt 00:01:06] [%clk 00:14:37]} Bd7
{[%emt 00:00:03] [%clk 00:16:04]} 7. O-O {[%emt 00:00:11] [%clk 00:14:35]} Nf6
{[%emt 00:00:02] [%clk 00:16:12]} 8. Bg5 {[%emt 00:00:09] [%clk 00:14:36]} Be7
{[%emt 00:00:02] [%clk 00:16:20]} 9. Bxc6 {[%emt 00:00:11] [%clk 00:14:35]} bxc6
{[%emt 00:00:02] [%clk 00:16:28]} 10. Nb3 {[%emt 00:00:22] [%clk 00:14:23]} Qc7
{[%emt 00:00:16] [%clk 00:16:22]} 11. Qd3 {[%emt 00:00:22] [%clk 00:14:11]} h6
{[%emt 00:00:15] [%clk 00:16:18]} 12. Bh4 {[%emt 00:00:15] [%clk 00:14:05]} g5
{[%emt 00:00:07] [%clk 00:16:21]} 13. Bg3 {[%emt 00:00:03] [%clk 00:14:12]} e5
{[%emt 00:00:05] [%clk 00:16:26]} 14. Rad1 {[%emt 00:00:14] [%clk 00:14:07]} Nh7
{[%emt 00:01:24] [%clk 00:15:13]} 15. Qe2 {[%emt 00:00:58] [%clk 00:13:19]} Nf8
{[%emt 00:00:10] [%clk 00:15:13]} 16. Na4 {[%emt 00:01:32] [%clk 00:11:57]} h5
{[%emt 00:00:06] [%clk 00:15:17]} 17. f3 {[%emt 00:00:04] [%clk 00:12:02]} Ne6
{[%emt 00:00:17] [%clk 00:15:11]} 18. c4 {[%emt 00:00:10] [%clk 00:12:03]} h4
{[%emt 00:01:17] [%clk 00:14:04]} 19. Bf2 {[%clk 00:12:12]} Nf4 {[%emt 00:00:01]
[%clk 00:14:13]} 20. Qd2 {[%emt 00:00:02] [%clk 00:12:21]} Be6 {[%emt 00:00:17]
[%clk 00:14:06]} 21. c5 {[%emt 00:01:24] [%clk 00:11:06]} d5 {[%emt 00:00:18]
[%clk 00:13:57]} 22. exd5 {[%emt 00:00:37] [%clk 00:10:40]} cxd5 {[%clk
00:14:06]} 23. Rfe1 {[%emt 00:00:27] [%clk 00:10:23]} f6 {[%emt 00:02:03] [%clk
00:12:13]} 24. Be3 {[%emt 00:00:52] [%clk 00:09:42]} h3 {[%emt 00:00:21] [%clk
00:12:02]} 25. Nd4 {[%emt 00:01:33] [%clk 00:08:19]} Bf7 {[%emt 00:02:43] [%clk
00:09:28]} 26. Bxf4 {[%emt 00:00:46] [%clk 00:07:42]} gxf4 {[%emt 00:00:08]
[%clk 00:09:31]} 27. Nf5 {[%clk 00:07:51]} Bxc5+ {[%emt 00:00:59] [%clk
00:08:42]} 28. Kh1 {[%emt 00:00:01] [%clk 00:07:58]} hxg2+ {[%emt 00:02:24]
[%clk 00:06:29]} 29. Qxg2 {[%emt 00:00:12] [%clk 00:07:56]} Bf8 {[%emt 00:00:19]
[%clk 00:06:21]} 30. Nc3 {[%emt 00:00:19] [%clk 00:07:47]} Qd7 {[%emt 00:02:24]
[%clk 00:04:07]} 31. Nd4 {[%emt 00:00:03] [%clk 00:07:55]} Qh3 {[%emt 00:00:56]
[%clk 00:03:19]} 32. Qe2 {[%emt 00:00:03] [%clk 00:08:02]} Rc8 {[%emt 00:01:01]
[%clk 00:02:29]} 33. Qb5+ {[%emt 00:02:11] [%clk 00:06:01]} Qd7 {[%emt 00:00:17]
[%clk 00:02:22]} 34. Qd3 {[%emt 00:00:06] [%clk 00:06:04]} Bb4 {[%emt 00:00:53]
[%clk 00:01:39]} 35. Re2 {[%emt 00:00:52] [%clk 00:05:23]} Kf8 {[%emt 00:00:10]
[%clk 00:01:40]} 36. Nc2 {[%emt 00:00:35] [%clk 00:04:58]} Bxc3 {[%emt 00:00:13]
[%clk 00:01:36]} 37. bxc3 {[%clk 00:05:07]} Rh3 {[%emt 00:00:47] [%clk
00:00:59]} 38. Rg1 {[%emt 00:00:37] [%clk 00:04:40]} Qe6 {[%emt 00:00:15] [%clk
00:00:54]} 39. Nd4 {[%emt 00:00:43] [%clk 00:04:07]} Qd7 {[%clk 00:01:03]} 40.
c4 {[%emt 00:01:00] [%clk 00:03:17]} Rxc4 {[%emt 00:00:08] [%clk 00:01:05]} 41.
Nf5 {[%emt 00:00:07] [%clk 00:03:19]} Qc7 {[%emt 00:00:14] [%clk 00:01:02]} 42.
Reg2 {[%emt 00:00:19] [%clk 00:03:11]} e4 {[%emt 00:00:38] [%clk 00:00:34]} 43.
Qa3+ {[%clk 00:03:20]} Qc5 {[%clk 00:00:43]} 44. Qa6 {[%emt 00:00:10] [%clk
00:03:20]} Qb6 {[%emt 00:00:08] [%clk 00:00:45]} 45. Qa3+ {[%emt 00:00:02] [%clk
00:03:28]} Qc5 {[%emt 00:00:02] [%clk 00:00:53]} 46. Qb2 {[%emt 00:00:34] [%clk
00:03:04]} Qb6 {[%emt 00:00:19] [%clk 00:00:45]} 47. Qa3+ {[%emt 00:00:13] [%clk
00:03:01]} Qc5 {[%emt 00:00:30] [%clk 00:00:25]} 48. Qb2 {[%emt 00:00:13] [%clk
00:02:56]} Qb6 {[%emt 00:00:11] [%clk 00:00:25]} 1/2-1/2

[Site "Europe Echecs"]

[Event "Championnat d'Europe Rapide"]
[Date "2024.12.07"]
[White "Sargissian, Gabriel"]
[Black "Magold, Filip"]
[WhiteElo "2628"]
[BlackElo "2428"]
[Round "5.6"]
[Result "1/2-1/2"]
[TimeControl "900+10"]

1. Nf3 {[%emt 00:00:02] [%clk 00:15:16]} d5 {[%emt 00:00:31] [%clk 00:14:51]} 2.
g3 {[%emt 00:00:02] [%clk 00:15:23]} Nf6 {[%emt 00:00:03] [%clk 00:14:59]} 3.
Bg2 {[%emt 00:00:02] [%clk 00:15:31]} c6 {[%emt 00:00:01] [%clk 00:15:08]} 4.
O-O {[%emt 00:00:18] [%clk 00:15:23]} Bg4 {[%emt 00:00:02] [%clk 00:15:16]} 5.
h3 {[%emt 00:01:01] [%clk 00:14:32]} Bxf3 {[%emt 00:00:02] [%clk 00:15:24]} 6.
exf3 {[%emt 00:00:21] [%clk 00:14:22]} h5 {[%emt 00:00:01] [%clk 00:15:32]} 7.
d4 {[%emt 00:00:48] [%clk 00:13:44]} e6 {[%emt 00:00:07] [%clk 00:15:35]} 8. Re1
{[%emt 00:00:28] [%clk 00:13:26]} Bd6 {[%emt 00:00:11] [%clk 00:15:33]} 9. h4
{[%emt 00:00:18] [%clk 00:13:19]} Nbd7 {[%emt 00:00:09] [%clk 00:15:34]} 10. a4
{[%emt 00:00:16] [%clk 00:13:13]} Qc7 {[%emt 00:00:28] [%clk 00:15:16]} 11. f4
{[%emt 00:00:19] [%clk 00:13:03]} g6 {[%emt 00:00:07] [%clk 00:15:19]} 12. Nd2
{[%emt 00:00:07] [%clk 00:13:07]} O-O {[%emt 00:00:44] [%clk 00:14:45]} 13. Nf3
{[%emt 00:00:07] [%clk 00:13:11]} c5 {[%emt 00:00:01] [%clk 00:14:53]} 14. c3
{[%emt 00:01:19] [%clk 00:12:02]} a6 {[%emt 00:01:44] [%clk 00:13:20]} 15. a5
{[%emt 00:00:38] [%clk 00:11:33]} Rfe8 {[%emt 00:00:14] [%clk 00:13:16]} 16.
dxc5 {[%emt 00:00:35] [%clk 00:11:08]} Bxc5 {[%emt 00:00:22] [%clk 00:13:04]}
17. Nd4 {[%emt 00:00:03] [%clk 00:11:15]} Ng4 {[%emt 00:00:07] [%clk 00:13:07]}
18. Bf3 {[%emt 00:00:38] [%clk 00:10:46]} Ndf6 {[%emt 00:00:09] [%clk 00:13:08]}
19. Kg2 {[%emt 00:00:18] [%clk 00:10:38]} Rad8 {[%emt 00:00:37] [%clk 00:12:42]}
20. Re2 {[%emt 00:00:40] [%clk 00:10:08]} Nh6 {[%emt 00:01:23] [%clk 00:11:29]}
21. Nb3 {[%emt 00:01:14] [%clk 00:09:04]} Ba7 {[%emt 00:00:22] [%clk 00:11:16]}
22. Be3 {[%emt 00:00:03] [%clk 00:09:11]} Bxe3 {[%emt 00:00:03] [%clk 00:11:24]}
23. Rxe3 {[%emt 00:00:02] [%clk 00:09:20]} Nf5 {[%emt 00:00:29] [%clk 00:11:03]}
24. Re2 {[%emt 00:01:06] [%clk 00:08:24]} Qc4 {[%emt 00:04:20] [%clk 00:06:54]}
25. Rd2 {[%emt 00:00:09] [%clk 00:08:24]} Ne4 {[%emt 00:01:02] [%clk 00:06:03]}
26. Bxe4 {[%emt 00:00:02] [%clk 00:08:32]} Qxe4+ {[%emt 00:00:05] [%clk
00:06:08]} 27. Qf3 {[%emt 00:00:03] [%clk 00:08:39]} Qc4 {[%emt 00:00:03] [%clk
00:06:15]} 28. Nd4 {[%emt 00:00:04] [%clk 00:08:45]} Nd6 {[%emt 00:00:19] [%clk
00:06:07]} 29. Qd1 {[%emt 00:00:35] [%clk 00:08:19]} Ne4 {[%emt 00:00:15] [%clk
00:06:02]} 30. Re2 {[%emt 00:00:11] [%clk 00:08:18]} Rb8 {[%emt 00:00:31] [%clk
00:05:41]} 31. Qa4 {[%emt 00:02:01] [%clk 00:06:27]} Rec8 {[%emt 00:01:05] [%clk
00:04:46]} 32. Qxc4 {[%emt 00:01:26] [%clk 00:05:11]} Rxc4 {[%emt 00:00:03]
[%clk 00:04:54]} 33. Ra3 {[%emt 00:00:44] [%clk 00:04:37]} b5 {[%emt 00:00:19]
[%clk 00:04:44]} 34. axb6 {[%emt 00:01:17] [%clk 00:03:30]} Rxb6 {[%emt
00:00:02] [%clk 00:04:52]} 35. Nf3 {[%emt 00:00:35] [%clk 00:03:06]} Nc5 {[%emt
00:00:27] [%clk 00:04:34]} 36. Ne5 {[%emt 00:00:32] [%clk 00:02:44]} Ra4 {[%emt
00:00:04] [%clk 00:04:41]} 37. Rxa4 {[%emt 00:00:02] [%clk 00:02:52]} Nxa4
{[%emt 00:00:01] [%clk 00:04:50]} 38. Nd3 {[%clk 00:03:01]} Rb3 {[%emt 00:00:16]
[%clk 00:04:44]} 39. Rd2 {[%emt 00:01:18] [%clk 00:01:53]} a5 {[%emt 00:00:01]
[%clk 00:04:53]} 40. Kf1 {[%emt 00:00:09] [%clk 00:01:54]} Nb6 {[%emt 00:00:05]
[%clk 00:04:58]} 41. Nc1 {[%emt 00:01:04] [%clk 00:01:00]} Rb5 {[%emt 00:00:01]
[%clk 00:05:07]} 42. b3 {[%emt 00:00:03] [%clk 00:01:08]} Nd7 {[%emt 00:00:34]
[%clk 00:04:43]} 43. Ra2 {[%emt 00:00:14] [%clk 00:01:03]} Nc5 {[%emt 00:00:12]
[%clk 00:04:41]} 44. Ke2 {[%emt 00:00:24] [%clk 00:00:50]} Nxb3 {[%emt 00:00:30]
[%clk 00:04:21]} 45. Nxb3 {[%emt 00:00:02] [%clk 00:00:58]} Rxb3 {[%emt
00:00:01] [%clk 00:04:29]} 46. Rxa5 {[%emt 00:00:02] [%clk 00:01:07]} Rxc3
{[%emt 00:00:01] [%clk 00:04:38]} 47. Ra7 {[%emt 00:00:04] [%clk 00:01:12]} Rc2+
{[%emt 00:00:21] [%clk 00:04:27]} 48. Ke3 {[%emt 00:00:01] [%clk 00:01:21]} Kg7
{[%emt 00:00:02] [%clk 00:04:36]} 49. Rb7 {[%emt 00:00:03] [%clk 00:01:28]} Kf6
{[%emt 00:00:09] [%clk 00:04:37]} 50. Rd7 {[%emt 00:00:06] [%clk 00:01:32]} Ra2
{[%emt 00:00:01] [%clk 00:04:45]} 51. Kf3 {[%emt 00:00:07] [%clk 00:01:35]} Ra3+
{[%emt 00:00:23] [%clk 00:04:32]} 52. Ke2 {[%emt 00:00:02] [%clk 00:01:43]} Ra4
{[%emt 00:00:10] [%clk 00:04:33]} 53. Ke3 {[%emt 00:00:23]} Ra8 {[%clk
00:04:37]} 54. Rb7 {[%emt 00:01:13] [%clk 00:00:33]} Re8 {[%emt 00:00:03] [%clk
00:04:44]} 55. Kf3 {[%emt 00:00:15] [%clk 00:00:28]} Re7 {[%emt 00:00:02] [%clk
00:04:52]} 56. Rb3 {[%emt 00:00:02] [%clk 00:00:36]} Rd7 {[%emt 00:00:11] [%clk
00:04:51]} 57. Re3 {[%emt 00:00:27] [%clk 00:00:18]} d4 {[%emt 00:00:07] [%clk
00:04:54]} 58. Re1 {[%emt 00:00:07] [%clk 00:00:21]} Kf5 {[%emt 00:00:34] [%clk
00:04:31]} 59. Re5+ {[%clk 00:00:30]} Kf6 {[%clk 00:04:40]} 60. Re1 {[%emt
00:00:17] [%clk 00:00:23]} d3 {[%emt 00:00:03] [%clk 00:04:48]} 61. Ke3 {[%emt
00:00:01] [%clk 00:00:31]} Kf5 {[%emt 00:00:32] [%clk 00:04:26]} 62. f3 {[%emt
00:00:02] [%clk 00:00:39]} Ra7 {[%emt 00:01:20] [%clk 00:03:16]} 63. Kxd3 {[%emt
00:00:04] [%clk 00:00:45]} Ra2 {[%emt 00:00:05] [%clk 00:03:22]} 64. Re5+ {[%emt
00:00:28] [%clk 00:00:27]} Kf6 {[%emt 00:00:01] [%clk 00:03:31]} 65. g4 {[%emt
00:00:01] [%clk 00:00:35]} hxg4 {[%emt 00:00:39] [%clk 00:03:02]} 66. fxg4
{[%emt 00:00:01] [%clk 00:00:44]} Ra3+ {[%emt 00:01:13] [%clk 00:02:00]} 67. Ke2
{[%emt 00:00:15] [%clk 00:00:39]} Rh3 {[%emt 00:00:06] [%clk 00:02:04]} 68. h5
{[%emt 00:00:14] [%clk 00:00:35]} gxh5 {[%emt 00:00:18] [%clk 00:01:55]} 69.
gxh5 {[%emt 00:00:01] [%clk 00:00:44]} Ke7 {[%emt 00:00:13] [%clk 00:01:52]} 70.
Rg5 {[%emt 00:00:17] [%clk 00:00:37]} f6 {[%emt 00:00:12] [%clk 00:01:50]} 71.
Rg7+ {[%emt 00:00:19] [%clk 00:00:28]} Kf8 {[%emt 00:00:01] [%clk 00:01:59]} 72.
Rh7 {[%emt 00:00:09] [%clk 00:00:29]} Kg8 {[%emt 00:01:36] [%clk 00:00:33]} 73.
Re7 {[%emt 00:00:03] [%clk 00:00:36]} Rxh5 {[%emt 00:00:03] [%clk 00:00:40]} 74.
Rxe6 {[%emt 00:00:01] [%clk 00:00:45]} 1/2-1/2

[Site "Europe Echecs"]

[Event "Championnat d'Europe Rapide"]
[Date "2024.12.07"]
[White "Deac, Bogdan-Daniel"]
[Black "Popovic, Milos T"]
[WhiteElo "2696"]
[BlackElo "2334"]
[Round "5.7"]
[Result "1-0"]
[TimeControl "900+10"]

1. Nf3 {[%emt 00:00:05] [%clk 00:15:17]} Nf6 {[%emt 00:00:02] [%clk 00:15:18]}
2. c4 {[%clk 00:15:24]} e6 {[%emt 00:00:06] [%clk 00:15:24]} 3. g3 {[%emt
00:00:04] [%clk 00:15:28]} b6 {[%emt 00:00:02] [%clk 00:15:32]} 4. Bg2 {[%emt
00:00:02] [%clk 00:15:35]} Bb7 {[%emt 00:00:05] [%clk 00:15:39]} 5. b3 {[%emt
00:00:01] [%clk 00:15:43]} Be7 {[%emt 00:00:06] [%clk 00:15:44]} 6. Bb2 {[%emt
00:00:01] [%clk 00:15:51]} O-O {[%emt 00:00:03] [%clk 00:15:51]} 7. O-O {[%emt
00:00:04] [%clk 00:15:57]} c5 {[%emt 00:00:02] [%clk 00:15:59]} 8. e3 {[%emt
00:00:02] [%clk 00:16:05]} d5 {[%emt 00:00:01] [%clk 00:16:08]} 9. Qe2 {[%emt
00:00:04] [%clk 00:16:12]} dxc4 {[%emt 00:00:12] [%clk 00:16:06]} 10. bxc4
{[%emt 00:00:01] [%clk 00:16:20]} Nc6 {[%emt 00:00:09] [%clk 00:16:08]} 11. Nc3
{[%emt 00:00:05] [%clk 00:16:24]} Nb4 {[%emt 00:03:09] [%clk 00:13:10]} 12. Ne1
{[%emt 00:01:45] [%clk 00:14:48]} Bxg2 {[%emt 00:00:04] [%clk 00:13:17]} 13.
Kxg2 {[%emt 00:00:01] [%clk 00:14:57]} Qd7 {[%emt 00:00:11] [%clk 00:13:16]} 14.
a3 {[%emt 00:00:09] [%clk 00:14:58]} Nc6 {[%emt 00:00:02] [%clk 00:13:24]} 15.
f4 {[%emt 00:00:02] [%clk 00:15:06]} Rad8 {[%emt 00:00:01] [%clk 00:13:32]} 16.
Rd1 {[%emt 00:00:09] [%clk 00:15:07]} Rfe8 {[%emt 00:00:31] [%clk 00:13:12]} 17.
Nf3 {[%emt 00:00:35] [%clk 00:14:41]} Qd3 {[%emt 00:00:50] [%clk 00:12:33]} 18.
Qxd3 {[%emt 00:00:23] [%clk 00:14:29]} Rxd3 {[%emt 00:00:01] [%clk 00:12:41]}
19. Kf2 {[%emt 00:00:02] [%clk 00:14:36]} Red8 {[%emt 00:00:44] [%clk 00:12:09]}
20. Ke2 {[%emt 00:00:09] [%clk 00:14:35]} R3d7 {[%emt 00:00:02] [%clk 00:12:18]}
21. d3 {[%emt 00:00:21] [%clk 00:14:24]} Ne8 {[%emt 00:01:17] [%clk 00:11:11]}
22. g4 {[%emt 00:00:41] [%clk 00:13:52]} Bf6 {[%emt 00:00:29] [%clk 00:10:53]}
23. g5 {[%emt 00:01:02] [%clk 00:12:59]} Bxc3 {[%emt 00:00:01] [%clk 00:11:02]}
24. Bxc3 {[%emt 00:00:01] [%clk 00:13:08]} Nd6 {[%emt 00:00:01] [%clk 00:11:12]}
25. Rd2 {[%emt 00:00:37] [%clk 00:12:41]} g6 {[%emt 00:02:49] [%clk 00:08:34]}
26. Rb1 {[%emt 00:02:16] [%clk 00:10:34]} Rb8 {[%emt 00:01:08] [%clk 00:07:36]}
27. a4 {[%emt 00:01:54] [%clk 00:08:49]} a6 {[%emt 00:00:55] [%clk 00:06:52]}
28. Ne5 {[%emt 00:08:16] [%clk 00:00:42]} Nxe5 {[%emt 00:00:03] [%clk 00:07:00]}
29. Bxe5 {[%emt 00:00:02] [%clk 00:00:50]} Rbd8 {[%emt 00:00:02] [%clk
00:07:07]} 30. Rbb2 {[%emt 00:00:45] [%clk 00:00:16]} Rb7 {[%emt 00:00:36] [%clk
00:06:41]} 31. Rb3 {[%emt 00:00:07] [%clk 00:00:19]} Nc8 {[%emt 00:00:14] [%clk
00:06:37]} 32. a5 {[%emt 00:00:09] [%clk 00:00:19]} b5 {[%emt 00:00:15] [%clk
00:06:33]} 33. cxb5 {[%emt 00:00:01] [%clk 00:00:28]} axb5 {[%emt 00:01:17]
[%clk 00:05:26]} 34. Rc2 {[%emt 00:00:02] [%clk 00:00:36]} Ne7 {[%emt 00:01:04]
[%clk 00:04:32]} 35. Rxc5 {[%emt 00:00:04] [%clk 00:00:42]} b4 {[%clk 00:04:41]}
36. e4 {[%emt 00:00:29] [%clk 00:00:23]} Rc8 {[%emt 00:00:23] [%clk 00:04:29]}
37. Rxc8+ {[%emt 00:00:09] [%clk 00:00:24]} Nxc8 {[%emt 00:00:01] [%clk
00:04:39]} 38. Bc3 {[%emt 00:00:16] [%clk 00:00:16]} Ra7 {[%emt 00:00:12] [%clk
00:04:38]} 39. Bxb4 {[%emt 00:00:03] [%clk 00:00:23]} Rb7 {[%emt 00:00:02] [%clk
00:04:47]} 40. Rb2 {[%emt 00:00:06] [%clk 00:00:25]} Na7 {[%emt 00:00:03] [%clk
00:04:54]} 41. Bc3 {[%emt 00:00:04] [%clk 00:00:31]} Rxb2+ {[%emt 00:00:08]
[%clk 00:04:57]} 42. Bxb2 {[%emt 00:00:02] [%clk 00:00:39]} Kf8 {[%clk
00:05:06]} 43. a6 {[%emt 00:00:08] [%clk 00:00:42]} Ke8 {[%emt 00:00:02] [%clk
00:05:14]} 44. Bd4 {[%emt 00:00:06] [%clk 00:00:46]} Nb5 {[%clk 00:05:23]} 45.
a7 {[%emt 00:00:21] [%clk 00:00:35]} 1-0

[Site "Europe Echecs"]

[Event "Championnat d'Europe Rapide"]
[Date "2024.12.07"]
[White "Motylev, Alexander"]
[Black "Kazakouski, Valery"]
[WhiteElo "2596"]
[BlackElo "2567"]
[Round "5.8"]
[Result "1/2-1/2"]
[TimeControl "900+10"]

1. e4 {[%emt 00:00:27] [%clk 00:14:52]} e5 {[%emt 00:00:04] [%clk 00:15:17]} 2.
Nf3 {[%emt 00:00:02] [%clk 00:15:00]} Nc6 {[%emt 00:00:02] [%clk 00:15:24]} 3.
d4 {[%emt 00:00:02] [%clk 00:15:09]} exd4 {[%emt 00:00:12] [%clk 00:15:22]} 4.
Nxd4 {[%emt 00:00:01] [%clk 00:15:17]} Qf6 {[%emt 00:00:06] [%clk 00:15:26]} 5.
Nf3 {[%emt 00:00:03] [%clk 00:15:25]} Bb4+ {[%emt 00:00:02] [%clk 00:15:34]} 6.
c3 {[%emt 00:00:02] [%clk 00:15:33]} Bc5 {[%emt 00:00:02] [%clk 00:15:43]} 7.
Be2 {[%emt 00:00:44] [%clk 00:14:59]} h6 {[%emt 00:00:04] [%clk 00:15:48]} 8.
O-O {[%emt 00:00:05] [%clk 00:15:04]} Nge7 {[%emt 00:00:07] [%clk 00:15:51]} 9.
b4 {[%emt 00:00:03] [%clk 00:15:11]} Bb6 {[%emt 00:00:05] [%clk 00:15:56]} 10.
a4 {[%emt 00:00:52] [%clk 00:14:29]} a6 {[%emt 00:00:07] [%clk 00:15:59]} 11.
Na3 {[%emt 00:00:37] [%clk 00:14:02]} O-O {[%emt 00:00:26] [%clk 00:15:42]} 12.
Nc4 {[%emt 00:00:39] [%clk 00:13:34]} d5 {[%emt 00:01:46] [%clk 00:14:06]} 13.
exd5 {[%emt 00:00:42] [%clk 00:13:02]} Rd8 {[%emt 00:00:02] [%clk 00:14:15]} 14.
d6 {[%emt 00:00:55] [%clk 00:12:17]} Be6 {[%emt 00:00:16] [%clk 00:14:08]} 15.
Bd2 {[%emt 00:04:32] [%clk 00:07:55]} Nf5 {[%emt 00:01:56] [%clk 00:12:22]} 16.
a5 {[%emt 00:05:36] [%clk 00:02:29]} Bxc4 {[%emt 00:00:28] [%clk 00:12:04]} 17.
Bxc4 {[%emt 00:00:04] [%clk 00:02:36]} Nxd6 {[%emt 00:00:04] [%clk 00:12:09]}
18. Bd3 {[%emt 00:01:06] [%clk 00:01:40]} Ba7 {[%emt 00:00:05] [%clk 00:12:14]}
19. Qc2 {[%emt 00:00:04] [%clk 00:01:47]} Re8 {[%emt 00:00:48] [%clk 00:11:35]}
20. Rae1 {[%emt 00:00:24] [%clk 00:01:33]} Ne5 {[%emt 00:01:09] [%clk 00:10:36]}
21. Nxe5 {[%emt 00:00:17] [%clk 00:01:26]} Rxe5 {[%emt 00:00:02] [%clk
00:10:44]} 22. Rxe5 {[%emt 00:00:28] [%clk 00:01:08]} Qxe5 {[%emt 00:00:02]
[%clk 00:10:52]} 23. Re1 {[%emt 00:00:37] [%clk 00:00:40]} Qf6 {[%emt 00:00:03]
[%clk 00:11:00]} 24. Bc1 {[%emt 00:00:09] [%clk 00:00:42]} 1/2-1/2

[Site "Europe Echecs"]

[Event "Championnat d'Europe Rapide"]
[Date "2024.12.07"]
[White "Ragger, Markus"]
[Black "Baidetskyi, Valentin"]
[WhiteElo "2577"]
[BlackElo "2519"]
[Round "5.9"]
[Result "1/2-1/2"]
[TimeControl "900+10"]

1. d4 {[%emt 00:00:07] [%clk 00:15:11]} Nf6 {[%emt 00:00:02] [%clk 00:15:18]} 2.
c4 {[%emt 00:00:02] [%clk 00:15:18]} e6 {[%emt 00:00:02] [%clk 00:15:27]} 3. Nf3
{[%emt 00:00:01] [%clk 00:15:27]} Bb4+ {[%emt 00:00:02] [%clk 00:15:35]} 4. Bd2
{[%emt 00:00:11] [%clk 00:15:25]} a5 {[%emt 00:00:02] [%clk 00:15:44]} 5. g3
{[%emt 00:00:01] [%clk 00:15:33]} d6 {[%emt 00:00:20] [%clk 00:15:34]} 6. Bg2
{[%emt 00:00:03] [%clk 00:15:41]} Nbd7 {[%emt 00:00:05] [%clk 00:15:39]} 7. O-O
{[%emt 00:00:11] [%clk 00:15:38]} e5 {[%emt 00:01:49] [%clk 00:14:02]} 8. dxe5
{[%emt 00:01:09] [%clk 00:14:39]} dxe5 {[%emt 00:00:11] [%clk 00:14:01]} 9. Nc3
{[%emt 00:00:16] [%clk 00:14:33]} O-O {[%emt 00:00:19] [%clk 00:13:51]} 10. a3
{[%emt 00:00:07] [%clk 00:14:37]} Be7 {[%emt 00:00:14] [%clk 00:13:47]} 11. Qc2
{[%emt 00:00:10] [%clk 00:14:36]} c6 {[%emt 00:01:19]} 12. Rfd1 {[%clk
00:13:44]} Qc7 {[%emt 00:00:07] [%clk 00:13:43]} 13. Na4 {[%emt 00:00:09] [%clk
00:13:45]} b6 {[%emt 00:00:59] [%clk 00:12:55]} 14. b4 {[%emt 00:00:30] [%clk
00:13:25]} axb4 {[%emt 00:00:08] [%clk 00:12:57]} 15. axb4 {[%emt 00:00:02]
[%clk 00:13:33]} Re8 {[%emt 00:01:06] [%clk 00:12:00]} 16. c5 {[%emt 00:02:31]
[%clk 00:11:12]} bxc5 {[%emt 00:00:05] [%clk 00:12:06]} 17. Nxc5 {[%emt
00:00:01] [%clk 00:11:20]} Rxa1 {[%emt 00:00:03] [%clk 00:12:14]} 18. Rxa1
{[%emt 00:00:01] [%clk 00:11:29]} Nxc5 {[%emt 00:00:43] [%clk 00:11:40]} 19.
bxc5 {[%emt 00:00:01] [%clk 00:11:38]} Bf8 {[%emt 00:00:10] [%clk 00:11:40]} 20.
Ng5 {[%emt 00:01:49] [%clk 00:09:59]} h6 {[%emt 00:02:32] [%clk 00:09:18]} 21.
Ne4 {[%emt 00:00:01] [%clk 00:10:08]} Nd5 {[%emt 00:00:19] [%clk 00:09:09]} 22.
Qa4 {[%emt 00:01:05] [%clk 00:09:13]} Be6 {[%emt 00:01:25] [%clk 00:07:55]} 23.
Rc1 {[%emt 00:01:47] [%clk 00:07:35]} Rb8 {[%emt 00:00:54] [%clk 00:07:11]} 24.
Qa3 {[%emt 00:01:16] [%clk 00:06:29]} 1/2-1/2

[Site "Europe Echecs"]